fUSD/lending_fUSD_20240422
["ID","MTS","AMOUNT","RATE_DAILY","PERIOD"]
[323187781,1713795060189,-3071.028883,0.00013699,2]
[323187782,1713795060200,-3071.028883,0.00013699,2]
[323187783,1713795060210,-266.221156,0.00013699,2]
[323187784,1713795060220,-3071.028883,0.00013699,2]
[323187785,1713795060230,-3071.028883,0.00013699,2]
[323187786,1713795060506,-3071.028883,0.00013699,2]
[323187787,1713795060516,-3071.028883,0.00013699,2]
[323187788,1713795060526,-3071.028883,0.00013699,2]
[323187789,1713795060537,-3071.028883,0.00013699,2]
[323187790,1713795060548,-3071.028883,0.00013699,2]
[323187791,1713795060558,-151.0,0.00013699,2]
[323187792,1713795060567,-3071.028883,0.00013699,2]
[323187793,1713795060577,-151.0,0.00013699,2]
[323187794,1713795060586,-3071.028883,0.00013699,2]
[323187795,1713795060595,-3071.028883,0.00013699,2]
[323187796,1713795060604,-3071.028874,0.00013699,2]
[323187797,1713795060615,-151.0,0.00013699,2]
[323187798,1713795060626,-151.0,0.00013699,2]
[323187799,1713795060637,-154.163492,0.00013699,2]
[323187800,1713795060647,-151.0,0.00013699,2]
[323187801,1713795060657,-151.0,0.00013699,2]
[323187802,1713795060666,-151.0,0.00013699,2]
[323187803,1713795060677,-151.0,0.00013699,2]
[323187804,1713795060688,-151.0,0.00013699,2]
[323187805,1713795060697,-151.0,0.00013699,2]
[323187806,1713795060707,-151.0,0.00013699,2]
[323187807,1713795060716,-151.0,0.00013699,2]
[323187808,1713795060725,-151.0,0.00013699,2]
[323187809,1713795060734,-151.0,0.00013699,2]
[323187810,1713795060744,-253.424612,0.00013699,2]
[323187811,1713795060753,-151.0,0.00013699,2]
[323187812,1713795060763,-151.0,0.00013699,2]
[323187813,1713795060773,-151.0,0.00013699,2]
[323187814,1713795060782,-151.0,0.00013699,2]
[323187815,1713795060798,-151.0,0.00013699,2]
[323187816,1713795060808,-151.0,0.00013699,2]
[323187817,1713795060817,-2061.270014,0.00013699,2]
[323187818,1713795060826,-151.0,0.00013699,2]
[323187819,1713795060837,-151.0,0.00013699,2]
[323187820,1713795060848,-151.807417,0.00013699,2]
[323187821,1713795060858,-2061.270014,0.00013699,2]
[323187822,1713795060869,-2061.270014,0.00013699,2]
[323187823,1713795060879,-2061.270014,0.00013699,2]
[323187824,1713795060889,-2061.270014,0.00013699,2]
[323187825,1713795060899,-151.0,0.00013699,2]
[323187826,1713795060909,-2061.270014,0.00013699,2]
[323187827,1713795060919,-151.0,0.00013699,2]
[323187828,1713795060929,-2061.270014,0.00013699,2]
[323187829,1713795060939,-151.0,0.00013699,2]
[323187830,1713795060950,-2061.270014,0.00013699,2]
[323187831,1713795060960,-151.0,0.00013699,2]
[323187832,1713795060969,-2061.270014,0.00013699,2]
[323187833,1713795060978,-151.0,0.00013699,2]
[323187834,1713795060988,-2061.270014,0.00013699,2]
[323187835,1713795060998,-151.0,0.00013699,2]
[323187836,1713795061007,-151.0,0.00013699,2]
[323187837,1713795061017,-151.0,0.00013699,2]
[323187838,1713795061026,-2061.270014,0.00013699,2]
[323187839,1713795061035,-151.0,0.00013699,2]
[323187840,1713795061045,-151.0,0.00013699,2]
[323187841,1713795061054,-2061.270014,0.00013699,2]
[323187842,1713795061064,-176.94494,0.00013699,2]
[323187843,1713795061073,-151.0,0.00013699,2]
[323187844,1713795061082,-151.0,0.00013699,2]
[323187845,1713795061092,-2061.270014,0.00013699,2]
[323187846,1713795061102,-2061.270014,0.00013699,2]
[323187847,1713795061112,-2061.270014,0.00013699,2]
[323187848,1713795061121,-970.84,0.00013699,2]
[323187849,1713795061130,-2061.270014,0.00013699,2]
[323187850,1713795061140,-2061.270014,0.00013699,2]
[323187851,1713795061150,-2061.270014,0.00013699,2]
[323187852,1713795061159,-2061.270014,0.00013699,2]
[323187853,1713795061169,-2061.270005,0.00013699,2]
[323187854,1713795061178,-151.0,0.00013699,2]
[323187855,1713795061188,-151.0,0.00013699,2]
[323187856,1713795061197,-151.0,0.00013699,2]
[323187857,1713795061207,-151.0,0.00013699,2]
[323187858,1713795061216,-151.0,0.00013699,2]
[323187859,1713795061226,-151.0,0.00013699,2]
[323187860,1713795061235,-151.0,0.00013699,2]
[323187861,1713795061244,-151.0,0.00013699,2]
[323187862,1713795061253,-152.830423,0.00013699,2]
[323187863,1713795061263,-151.0,0.00013699,2]
[323187864,1713795061273,-151.0,0.00013699,2]
[323187865,1713795061282,-151.0,0.00013699,2]
[323187866,1713795061291,-151.0,0.00013699,2]
[323187867,1713795061301,-151.0,0.00013699,2]
[323187868,1713795061310,-151.0,0.00013699,2]
[323187869,1713795061319,-151.0,0.00013699,2]
[323187870,1713795061329,-234.653684,0.00013699,2]
[323187871,1713795061339,-151.0,0.00013699,2]
[323187872,1713795061349,-151.0,0.00013699,2]
[323187873,1713795061358,-151.0,0.00013699,2]
[323187874,1713795061367,-151.0,0.00013699,2]
[323187875,1713795061376,-151.0,0.00013699,2]
[323187876,1713795061386,-151.0,0.00013699,2]
[323187877,1713795061395,-151.0,0.00013699,2]
[323187878,1713795061405,-151.0,0.00013699,2]
[323187879,1713795061414,-151.0,0.00013699,2]
[323187880,1713795061423,-151.0,0.00013699,2]
[323187881,1713795061433,-151.0,0.00013699,2]
[323187882,1713795061442,-151.0,0.00013699,2]
[323187883,1713795061452,-277.780836,0.00013699,2]
[323187884,1713795061461,-300.0,0.00013699,2]
[323187885,1713795061470,-300.0,0.00013699,2]
[323187886,1713795061480,-300.0,0.00013699,2]
[323187887,1713795061489,-250.0,0.000137,2]
[323187888,1713795061499,-500.0,0.000137,2]
[323187889,1713795061508,-500.0,0.000137,2]
[323187890,1713795061518,-155.92,0.000137,2]
[323187891,1713795061527,-155.92,0.000137,2]
[323187892,1713795061536,-150.0,0.00013703,2]
[323187893,1713795061546,-150.0,0.00013707,2]
[323187894,1713795061555,-10768.37683622,0.00013709,2]
[323187895,1713795061566,-150.0,0.00013716,2]
[323187896,1713795061576,-8256.77,0.00013718,2]
[323187897,1713795061585,-5000.0,0.0001372,2]
[323187898,1713795061596,-150.0,0.00013726,2]
[323187899,1713795061605,-150.0,0.00013727,2]
[323187900,1713795061614,-150.0,0.0001373,2]
[323187901,1713795061624,-150.0,0.0001373,2]
[323187902,1713795061634,-343.78384376,0.00013731,2]
[323187903,1713795061645,-343.78384376,0.00013731,2]
[323187904,1713795061655,-343.78384376,0.00013731,2]
[323187905,1713795061665,-343.78384376,0.00013731,2]
[323187906,1713795061676,-2892.31,0.00013732,2]
[323187907,1713795061686,-998.69536364,0.00013735,2]
[323187908,1713795061695,-278.0459335,0.00013735,2]
[323187909,1713795061705,-6471.24872964,0.00013735,2]
[323187910,1713795061715,-1444.77798007,0.00013737,2]
[323187911,1713795061724,-150.0,0.00013738,2]
[323187912,1713795061734,-1537.96,0.00013738,2]
[323187913,1713795061744,-150.0,0.00013744,2]
[323187914,1713795061753,-150.0,0.00013745,2]
[323187915,1713795061762,-150.0,0.00013749,2]
[323187916,1713795061772,-150.0,0.00013749,2]
[323187917,1713795061782,-2500.0,0.00013755,2]
[323187918,1713795061792,-150.0,0.00013759,2]
[323187919,1713795061805,-150.0,0.00013763,2]
[323187920,1713795061815,-5000.0,0.00013765,2]
[323187921,1713795061824,-150.0,0.00013767,2]
[323187922,1713795061834,-150.0,0.00013767,2]
[323187923,1713795061846,-150.0,0.00013768,2]
[323187924,1713795061856,-150.0,0.00013768,2]
[323187925,1713795061865,-5000.0,0.00013769,2]
[323187926,1713795061876,-150.0,0.00013771,2]
[323187927,1713795061886,-10768.37683622,0.00013773,2]
[323187928,1713795061896,-150.0,0.00013776,2]
[323187929,1713795061905,-150.0,0.00013781,2]
[323187930,1713795061915,-150.0,0.00013782,2]
[323187931,1713795061926,-5000.0,0.00013785,2]
[323187932,1713795061936,-150.0,0.00013785,2]
[323187933,1713795061944,-10000.0,0.00013794,2]
[323187934,1713795061955,-10000.0,0.00013795,2]
[323187935,1713795061965,-150.0,0.00013796,2]
[323187936,1713795061976,-150.0,0.00013796,2]
[323187937,1713795061986,-5000.0,0.00013798,2]
[323187938,1713795061996,-5000.0,0.00013799,2]
[323187939,1713795062005,-500.0,0.000138,2]
[323187940,1713795062014,-150.0,0.00013801,2]
[323187941,1713795062023,-150.0,0.00013801,2]
[323187942,1713795062033,-150.0,0.00013802,2]
[323187943,1713795062042,-150.0,0.00013802,2]
[323187944,1713795062051,-5000.0,0.00013803,2]
[323187945,1713795062061,-150.0,0.00013809,2]
[323187946,1713795062072,-150.0,0.00013813,2]
[323187947,1713795062081,-150.0,0.00013814,2]
[323187948,1713795062091,-150.0,0.00013816,2]
[323187949,1713795062103,-150.0,0.00013816,2]
[323187950,1713795062112,-150.0,0.00013817,2]
[323187951,1713795062122,-150.0,0.00013817,2]
[323187952,1713795062132,-500.0,0.00013821,2]
[323187953,1713795062143,-4580.68,0.00013823,2]
[323187954,1713795062152,-150.0,0.00013823,2]
[323187955,1713795062162,-25000.0,0.00013824,2]
[323187956,1713795062172,-150.0,0.00013827,2]
[323187957,1713795062181,-150.0,0.00013827,2]
[323187958,1713795062192,-5000.0,0.00013828,2]
[323187959,1713795062202,-150.0,0.00013829,2]
[323187960,1713795062212,-500.0,0.0001383,2]
[323187961,1713795062222,-500.0,0.0001383,2]
[323187962,1713795062233,-500.0,0.0001383,2]
[323187963,1713795062242,-500.0,0.0001383,2]
[323187964,1713795062252,-150.0,0.0001383,2]
[323187965,1713795062262,-150.0,0.00013834,2]
[323187966,1713795062271,-10768.37683622,0.00013836,2]
[323187967,1713795062281,-5000.0,0.00013837,2]
[323187968,1713795062293,-500.0,0.00013838,2]
[323187969,1713795062304,-500.0,0.00013838,2]
[323187970,1713795062314,-500.0,0.00013838,2]
[323187971,1713795062326,-500.0,0.00013838,2]
[323187972,1713795062335,-150.0,0.0001384,2]
[323187973,1713795062345,-2500.0,0.00013846,2]
[323187974,1713795062355,-500.0,0.00013847,2]
[323187975,1713795062366,-500.0,0.00013847,2]
[323187976,1713795062375,-500.0,0.00013847,2]
[323187977,1713795062385,-500.0,0.00013847,2]
[323187978,1713795062394,-150.0,0.00013848,2]
[323187979,1713795062405,-5800.0,0.00013849,2]
[323187980,1713795062415,-150.0,0.0001385,2]
[323187981,1713795062426,-500.0,0.00013856,2]
[323187982,1713795062435,-500.0,0.00013856,2]
[323187983,1713795062446,-500.0,0.00013856,2]
[323187984,1713795062458,-500.0,0.00013856,2]
[323187985,1713795062467,-150.0,0.00013856,2]
[323187986,1713795062477,-5800.0,0.00013858,2]
[323187987,1713795062486,-150.0,0.00013859,2]
[323187988,1713795062495,-150.0,0.00013863,2]
[323187989,1713795062505,-150.0,0.00013864,2]
[323187990,1713795062514,-500.0,0.00013865,2]
[323187991,1713795062525,-500.0,0.00013865,2]
[323187992,1713795062534,-500.0,0.00013865,2]
[323187993,1713795062544,-500.0,0.00013865,2]
[323187994,1713795062554,-150.0,0.00013865,2]
[323187995,1713795062563,-5800.0,0.00013866,2]
[323187996,1713795062573,-3139.65,0.00013867,2]
[323187997,1713795062582,-150.0,0.00013867,2]
[323187998,1713795062592,-154.08942295,0.00013869,2]
[323187999,1713795062602,-1444.77798007,0.00013869,2]
[323188000,1713795062612,-178.37348282,0.00013869,2]
[323188001,1713795062621,-343.78384376,0.00013869,2]
[323188002,1713795062631,-343.78384376,0.00013869,2]
[323188003,1713795062640,-343.78384376,0.00013869,2]
[323188004,1713795062649,-343.78384376,0.00013869,2]
[323188005,1713795062659,-998.69536364,0.00013872,2]
[323188006,1713795062668,-278.0459335,0.00013872,2]
[323188007,1713795062678,-6471.24872964,0.00013872,2]
[323188008,1713795062688,-500.0,0.00013874,2]
[323188009,1713795062698,-500.0,0.00013874,2]
[323188010,1713795062708,-500.0,0.00013874,2]
[323188011,1713795062717,-500.0,0.00013874,2]
[323188012,1713795062728,-150.0,0.00013874,2]
[323188013,1713795062737,-5800.0,0.00013875,2]
[323188014,1713795062747,-150.0,0.00013879,2]
[323188015,1713795062757,-150.0,0.0001388,2]
[323188016,1713795062766,-150.0,0.0001388,2]
[323188017,1713795062776,-150.0,0.00013882,2]
[323188018,1713795062786,-500.0,0.00013882,2]
[323188019,1713795062798,-500.0,0.00013882,2]
[323188020,1713795062905,-500.0,0.00013882,2]
[323188021,1713795062914,-500.0,0.00013882,2]
[323188022,1713795062923,-5800.0,0.00013883,2]
[323188023,1713795062933,-5800.0,0.00013883,2]
[323188024,1713795062942,-150.0,0.00013888,2]
[323188025,1713795062951,-150.0,0.0001389,2]
[323188026,1713795062961,-500.0,0.00013891,2]
[323188027,1713795062970,-500.0,0.00013891,2]
[323188028,1713795062979,-160.0,0.00013891,2]
[323188029,1713795062988,-500.0,0.00013891,2]
[323188030,1713795062997,-500.0,0.00013891,2]
[323188031,1713795063007,-500.0,0.00013891,2]
[323188032,1713795063016,-5800.0,0.00013891,2]
[323188033,1713795063025,-5800.0,0.00013891,2]
[323188034,1713795063034,-5800.0,0.00013891,2]
[323188035,1713795063044,-5800.0,0.00013891,2]
[323188036,1713795063052,-150.0,0.00013894,2]
[323188037,1713795063062,-150.0,0.00013894,2]
[323188038,1713795063071,-150.0,0.00013897,2]
[323188039,1713795063080,-150.0,0.00013898,2]
[323188040,1713795063089,-300.0,0.00013899,2]
[323188041,1713795063098,-300.0,0.00013899,2]
[323188042,1713795063107,-150.0,0.00013899,2]
[323188043,1713795063116,-500.0,0.000139,2]
[323188044,1713795063125,-500.0,0.000139,2]
[323188045,1713795063134,-58000.0,0.000139,2]
[323188046,1713795063143,-344.24353973,0.000139,2]
[323188047,1713795063152,-52166.07884157,0.000139,2]
[323188048,1713795063161,-500.0,0.000139,2]
[323188049,1713795063170,-6469.351678,0.000139,2]
[323188050,1713795063180,-5800.0,0.000139,2]
[323188051,1713795063189,-160.0,0.000139,2]
[323188052,1713795063197,-500.0,0.000139,2]
[323188053,1713795063206,-500.0,0.000139,2]
[323188054,1713795063215,-500.0,0.000139,2]
[323188055,1713795063224,-500.0,0.000139,2]
[323188056,1713795063233,-5800.0,0.000139,2]
[323188057,1713795063242,-160.0,0.000139,2]
[323188058,1713795063251,-500.0,0.000139,2]
[323188059,1713795063260,-896.46552233,0.000139,2]
[323188060,1713795063269,-5800.0,0.000139,2]
[323188061,1713795063278,-3982.41267193,0.000139,2]
[323188062,1713795063287,-500.0,0.000139,2]
[323188063,1713795063296,-150.0,0.000139,2]
[323188064,1713795063305,-10768.37683622,0.000139,2]
[323188065,1713795063314,-5800.0,0.000139,2]
[323188066,1713795063325,-5350.0,0.000139,10]
[323188067,1713795063334,-5350.0,0.000139,11]
[323188068,1713795063343,-5350.0,0.000139,12]
[323188069,1713795063353,-150.0,0.00013904,2]
[323188070,1713795063364,-150.0,0.00013906,2]
[323188071,1713795063374,-25000.0,0.0001391,2]
[323188072,1713795063384,-262.9551548,0.00013913,2]
[323188073,1713795063392,-150.0,0.00013919,2]
[323188074,1713795063404,-150.0,0.0001392,2]
[323188075,1713795063414,-150.0,0.00013921,2]
[323188076,1713795063423,-150.0,0.00013921,2]
[323188077,1713795063432,-150.0,0.00013924,2]
[323188078,1713795063441,-150.0,0.00013925,2]
[323188079,1713795063450,-150.0,0.00013932,2]
[323188080,1713795063458,-150.0,0.00013936,2]
[323188081,1713795063467,-156.37359678,0.00013936,2]
[323188082,1713795063476,-150.0,0.00013938,2]
[323188083,1713795063486,-150.0,0.00013941,2]
[323188084,1713795063494,-150.0,0.00013942,2]
[323188085,1713795063503,-150.0,0.00013946,2]
[323188086,1713795063512,-5000.0,0.00013947,2]
[323188087,1713795063521,-150.0,0.00013956,2]
[323188088,1713795063532,-150.0,0.00013961,2]
[323188089,1713795063541,-150.0,0.00013963,2]
[323188090,1713795063551,-150.0,0.00013963,2]
[323188091,1713795063561,-150.0,0.00013965,2]
[323188092,1713795063570,-6942185.40585025,0.00013969,2]
[323188093,1713795064328,-512.10258997,0.00013969,2]
[323188094,1713795065457,-500.0,0.00013698,2]
[323188095,1713795065467,-7034.37,0.00013698,2]
[323188096,1713795065478,-500.0,0.00013698,2]
[323188097,1713795065489,-2687.33,0.00013698,2]
[323188098,1713795065499,-500.0,0.00013698,2]
[323188099,1713795065509,-500.0,0.00013698,2]
[323188100,1713795065520,-151.0,0.00013699,2]
[323188101,1713795065530,-151.0,0.00013699,2]
[323188102,1713795065540,-151.0,0.00013699,2]
[323188103,1713795065550,-151.0,0.00013699,2]
[323188104,1713795065559,-151.0,0.00013699,2]
[323188105,1713795065570,-267.893921,0.00013699,2]
[323188106,1713795065580,-150.0,0.0001393,2]
[323188107,1713795065591,-20230.406079,0.00013969,2]
[323188108,1713795067018,-246.4440925,0.00012999,2]
[323188109,1713795067028,-150.0,0.00013178,2]
[323188110,1713795067038,-1266.21196872,0.0001339,2]
[323188111,1713795067047,-500.0,0.00013698,2]
[323188112,1713795067057,-500.0,0.00013698,2]
[323188113,1713795067066,-995.9,0.00013698,2]
[323188114,1713795067076,-500.0,0.00013698,2]
[323188115,1713795067085,-500.0,0.00013698,2]
[323188116,1713795067094,-500.0,0.00013698,2]
[323188117,1713795067105,-1559.5,0.00013698,2]
[323188118,1713795067114,-2071.51,0.00013698,2]
[323188119,1713795067123,-1167.85147088,0.00013969,2]
[323188124,1713795368564,559.58,0.00010785,2]
[323188130,1713795777083,904.27,0.00027121,120]
[323188132,1713795820727,1268.57132451,0.00010785,10]
[323188133,1713795850296,540.83,0.00010544,2]
[323188134,1713795881762,9179.22619712,0.00011899,7]
[323188135,1713795896070,1268.57132451,0.00010544,10]
[323188136,1713795911120,999.51634826,0.00010544,10]
[323188137,1713795911148,269.05497625,0.00010544,10]
[323188139,1713795927139,1268.57132451,0.00010544,10]
[323188141,1713795950980,9179.22619712,0.00012517,7]
[323188142,1713795951406,1268.57132451,0.00010544,10]
[323188144,1713795969130,1268.57132451,0.00010544,10]
[323188145,1713795989134,1268.57132451,0.00010544,10]
[323188146,1713796011224,1268.57132451,0.00010544,10]
[323188147,1713796022769,9179.22619712,0.00012517,7]
[323188148,1713796029138,859.51185709,0.00010544,10]
[323188150,1713796099331,9179.22619712,0.00012305,7]
[323188236,1713796176487,9179.22619712,0.00012305,7]
[323188278,1713796238168,-12468.35136977,0.000119,2]
[323188279,1713796238269,-2812.23763023,0.000119,2]
[323188280,1713796238281,-2540.35536187,0.00012,2]
[323188281,1713796238292,-970.66,0.00012,2]
[323188282,1713796238301,-970.82908664,0.000121,2]
[323188283,1713796238310,-970.66,0.000121,2]
[323188284,1713796238322,-970.66,0.000121,2]
[323188285,1713796238333,-970.66,0.000121,2]
[323188286,1713796238342,-970.66,0.000121,2]
[323188287,1713796238351,-970.66,0.000121,2]
[323188288,1713796238361,-970.66,0.0001211,2]
[323188289,1713796238372,-970.66,0.0001211,2]
[323188290,1713796238382,-970.66,0.0001211,2]
[323188291,1713796238393,-970.66,0.0001211,2]
[323188292,1713796238403,-970.66,0.0001212,2]
[323188293,1713796238413,-970.66,0.0001212,2]
[323188294,1713796238422,-970.66,0.000122,2]
[323188295,1713796238431,-1019.61,0.00012246,2]
[323188296,1713796238440,-1000.0,0.00012279,2]
[323188297,1713796238450,-4164.95,0.00012306,2]
[323188298,1713796238459,-354.18,0.00012322,2]
[323188299,1713796238468,-250.0,0.00012323,2]
[323188300,1713796238477,-150.0,0.00012371,2]
[323188301,1713796238486,-4975.77,0.00012371,2]
[323188302,1713796238495,-4685.13,0.00012518,2]
[323188303,1713796238504,-219.38,0.00012697,2]
[323188304,1713796238513,-300.0,0.00012778,2]
[323188305,1713796238523,-540.83,0.00012808,2]
[323188306,1713796238532,-499.99,0.0001281,2]
[323188307,1713796238542,-28014.92792497,0.00012989,2]
[323188308,1713796238551,-685.82571,0.00013,2]
[323188309,1713796238561,-1750.0,0.00013,2]
[323188310,1713796238574,-3391.10792816,0.00013011,7]
[323188330,1713796240284,-462.865994,0.00013011,7]
[323188331,1713796240345,-249.89509224,0.00013011,7]
[323188332,1713796240354,-370.39,0.00013078,2]
[323188333,1713796240364,-150.0,0.00013178,2]
[323188334,1713796240373,-154.38,0.00013178,2]
[323188335,1713796240382,-150.0,0.00013178,2]
[323188336,1713796240390,-523.0,0.00013343,2]
[323188337,1713796240399,-1670.0,0.00013343,2]
[323188338,1713796240409,-411.56477766,0.0001339,2]
[323188339,1713796240417,-155.0,0.0001339,2]
[323188340,1713796240426,-1393.0,0.00013403,2]
[323188341,1713796240435,-5727.0,0.00013403,2]
[323188342,1713796240444,-5891.0,0.00013403,2]
[323188343,1713796240453,-2294.0,0.00013403,2]
[323188344,1713796240462,-461.0,0.00013403,2]
[323188345,1713796240470,-969.0,0.00013403,2]
[323188346,1713796240477,-2704.0,0.00013403,2]
[323188347,1713796240485,-37689.0,0.00013403,2]
[323188348,1713796240493,-541.0,0.00013403,2]
[323188349,1713796240501,-1228.0,0.00013403,2]
[323188350,1713796240508,-164.65244567,0.00013598,2]
[323188351,1713796240515,-7922.49600322,0.00013598,2]
[323188352,1713796240524,-10000.0,0.00013598,2]
[323188353,1713796240531,-7127.3631,0.00013598,2]
[323188354,1713796240539,-7922.49600316,0.00013625,2]
[323188355,1713796240546,-7922.49600316,0.00013653,2]
[323188356,1713796240552,-7922.49600316,0.0001368,2]
[323188357,1713796240559,-88653.96810179,0.00013696,2]
[323188358,1713796240566,-526.34146412,0.00013696,2]
[323188360,1713796240576,-196.95211112,0.00013696,2]
[323188362,1713796240583,-354.33169906,0.00013697,2]
[323188363,1713796240589,-249.76531101,0.00013697,2]
[323188364,1713796240596,-500.0,0.00013698,2]
[323188365,1713796240602,-500.0,0.00013698,2]
[323188366,1713796240608,-500.0,0.00013698,2]
[323188367,1713796240616,-273.16915017,0.00013698,2]
[323188368,1713796240622,-500.0,0.00013698,2]
[323188369,1713796240629,-500.0,0.00013698,2]
[323188370,1713796240635,-500.0,0.00013698,2]
[323188371,1713796240641,-600.90608665,0.00013698,2]
[323188372,1713796240649,-500.0,0.00013698,2]
[323188373,1713796240656,-200.0,0.00013698,10]
[323188374,1713796240663,-500.0,0.00013698,2]
[323188375,1713796240669,-500.0,0.00013698,2]
[323188376,1713796240676,-500.0,0.00013698,2]
[323188377,1713796240683,-500.0,0.00013698,2]
[323188378,1713796240689,-500.0,0.00013698,2]
[323188379,1713796240697,-523.57,0.00013698,2]
[323188380,1713796240705,-867.26,0.00013698,2]
[323188381,1713796240713,-500.0,0.00013698,2]
[323188382,1713796240720,-741.64,0.00013698,2]
[323188383,1713796240729,-798.71,0.00013698,2]
[323188384,1713796240736,-500.0,0.00013698,2]
[323188385,1713796240743,-1643.98,0.00013698,2]
[323188386,1713796240749,-500.0,0.00013698,2]
[323188387,1713796240755,-632.04688161,0.00013698,2]
[323188388,1713796240762,-632.85,0.00013698,2]
[323188389,1713796240769,-670.83,0.00013698,2]
[323188390,1713796240776,-500.0,0.00013698,2]
[323188391,1713796240783,-500.0,0.00013698,2]
[323188392,1713796240790,-500.0,0.00013698,2]
[323188393,1713796240800,-500.0,0.00013698,2]
[323188394,1713796240810,-500.0,0.00013698,2]
[323188395,1713796240822,-1801.75,0.00013698,2]
[323188396,1713796240831,-580.49,0.00013698,2]
[323188397,1713796240840,-500.0,0.00013698,2]
[323188398,1713796240849,-1317.48,0.00013698,2]
[323188399,1713796240858,-502.78,0.00013698,2]
[323188400,1713796240868,-980.3,0.00013698,2]
[323188401,1713796240877,-500.0,0.00013698,2]
[323188402,1713796240887,-717.09,0.00013698,2]
[323188403,1713796240897,-500.0,0.00013698,2]
[323188404,1713796240906,-595.24,0.00013698,2]
[323188405,1713796240916,-500.0,0.00013698,2]
[323188406,1713796240925,-688.29,0.00013698,2]
[323188407,1713796240936,-500.0,0.00013698,2]
[323188408,1713796240946,-500.0,0.00013698,2]
[323188409,1713796240955,-500.0,0.00013698,2]
[323188410,1713796240965,-500.0,0.00013698,2]
[323188411,1713796240975,-500.0,0.00013698,2]
[323188412,1713796240985,-844.5,0.00013698,2]
[323188413,1713796240994,-1546.48,0.00013698,2]
[323188414,1713796241003,-579.58,0.00013698,2]
[323188415,1713796241012,-500.0,0.00013698,2]
[323188416,1713796241022,-500.0,0.00013698,2]
[323188417,1713796241032,-500.0,0.00013698,2]
[323188418,1713796241042,-500.0,0.00013698,2]
[323188419,1713796241051,-610.84,0.00013698,2]
[323188420,1713796241060,-500.0,0.00013698,2]
[323188421,1713796241072,-1046.87,0.00013698,2]
[323188422,1713796241081,-500.0,0.00013698,2]
[323188423,1713796241091,-500.0,0.00013698,2]
[323188424,1713796241100,-655.11,0.00013698,2]
[323188425,1713796241400,-516.21,0.00013698,2]
[323188426,1713796241414,-500.0,0.00013698,2]
[323188427,1713796241423,-1142.83,0.00013698,2]
[323188428,1713796241433,-500.0,0.00013698,2]
[323188429,1713796241444,-500.0,0.00013698,2]
[323188430,1713796241453,-500.0,0.00013698,2]
[323188431,1713796241462,-812.14,0.00013698,2]
[323188432,1713796241472,-777.85,0.00013698,2]
[323188433,1713796241483,-654.27,0.00013698,2]
[323188434,1713796241493,-500.0,0.00013698,2]
[323188435,1713796241502,-500.0,0.00013698,2]
[323188436,1713796241511,-541.8,0.00013698,2]
[323188437,1713796241520,-500.0,0.00013698,2]
[323188438,1713796241529,-562.23,0.00013698,2]
[323188439,1713796241538,-500.0,0.00013698,2]
[323188440,1713796241547,-500.0,0.00013698,2]
[323188441,1713796241556,-802.67,0.00013698,2]